[Event "Championnat du monde jeunes U12"]
[Date "2024.11.26"]
[White "Hallmundarson, Birkir"]
[Black "Ilcic, Aleksa"]
[WhiteElo "1914"]
[BlackElo "1757"]
[Round "11.39"]
[Result "1-0"]
[TimeControl "5400+30"]

1. Nf3 {[%clk 1:30:58]} 1... Nf6 {[%clk 1:30:52]} 2. d4 {[%clk 1:31:24]} 2... g6
{[%clk 1:31:14]} 3. Bg5 {[%clk 1:31:47]} 3... Bg7 {[%clk 1:31:35]} 4. Nbd2
{[%clk 1:31:59]} 4... O-O {[%clk 1:31:23]} 5. e4 {[%clk 1:32:19]} 5... d6 {[%clk
1:31:42]} 6. c3 {[%clk 1:32:41]} 6... Nbd7 {[%clk 1:28:34]} 7. Bc4 {[%clk
1:29:29]} 7... h6 {[%clk 1:24:55]} 8. Bh4 {[%clk 1:29:46]} 8... Qe8 {[%clk
1:19:13]} 9. e5 {[%clk 1:18:32]} 9... Nh7 {[%clk 1:16:57]} 10. e6 {[%clk
1:18:46]} 10... fxe6 {[%clk 1:17:21]} 11. Bxe6+ {[%clk 1:19:11]} 11... Kh8
{[%clk 1:17:42]} 12. O-O {[%clk 1:19:18]} 12... g5 {[%clk 1:16:54]} 13. Bg3
{[%clk 1:19:26]} 13... Qg6 {[%clk 1:16:59]} 14. Re1 {[%clk 1:19:16]} 14... Ndf6
{[%clk 1:14:10]} 15. Bxc8 {[%clk 1:19:17]} 15... Raxc8 {[%clk 1:14:34]} 16. Rxe7
{[%clk 1:19:22]} 16... Nd5 {[%clk 1:14:54]} 17. Re1 {[%clk 1:19:19]} 17... Nf4
{[%clk 1:14:50]} 18. Qb1 {[%clk 1:18:42]} 18... Qh5 {[%clk 1:14:09]} 19. Qc2
{[%clk 1:11:35]} 19... g4 {[%clk 1:04:56]} 20. Nh4 {[%clk 1:11:51]} 20... Bf6
{[%clk 1:00:56]} 21. Nf5 {[%clk 1:11:15]} 21... Bg5 {[%clk 0:59:39]} 22. Ne3
{[%clk 0:59:25]} 22... Nf6 {[%clk 0:57:36]} 23. Ne4 {[%clk 0:57:40]} 23... Nxe4
{[%clk 0:42:07]} 24. Qxe4 {[%clk 0:58:01]} 24... c6 {[%clk 0:42:01]} 25. d5
{[%clk 0:50:43]} 25... c5 {[%clk 0:40:52]} 26. Rad1 {[%clk 0:50:47]} 26... Rce8
{[%clk 0:40:39]} 27. Qc2 {[%clk 0:50:51]} 27... b5 {[%clk 0:36:26]} 28. c4
{[%clk 0:46:08]} 28... b4 {[%clk 0:35:51]} 29. Qa4 {[%clk 0:43:30]} 29... Qf7
{[%clk 0:30:44]} 30. Qc6 {[%clk 0:40:37]} 30... Nh5 {[%clk 0:22:08]} 31. Qxd6
{[%clk 0:38:21]} 31... Nxg3 {[%clk 0:21:10]} 32. Qxg3 {[%clk 0:38:37]} 32... Bf4
{[%clk 0:21:25]} 33. Qh4 {[%clk 0:38:57]} 33... Bg5 {[%clk 0:21:38]} 34. Qg3
{[%clk 0:36:02]} 34... Bf4 {[%clk 0:21:59]} 35. Qxg4 {[%clk 0:35:49]} 35... Bxe3
{[%clk 0:21:00]} 36. fxe3 {[%clk 0:36:08]} 36... Qf2+ {[%clk 0:21:12]} 37. Kh1
{[%clk 0:36:36]} 37... Rxe3 {[%clk 0:21:05]} 38. Rg1 {[%clk 0:36:56]} 38... Kh7
{[%clk 0:16:32]} 39. d6 {[%clk 0:36:49]} 39... Rg8 {[%clk 0:14:21]} 40. Qxg8+
{[%clk 0:36:30]} 40... Kxg8 {[%clk 0:13:32]} 41. d7 {[%clk 0:36:53]} 1-0

[Variant "Standard"]
[Site "Europe Echecs"]

[Event "Championnat du monde jeunes U12"]
[Date "2024.11.26"]
[White "Yusupov, Rauf"]
[Black "Tona, Leonardo"]
[WhiteElo "1763"]
[BlackElo "1906"]
[Round "11.40"]
[Result "0-1"]
[TimeControl "5400+30"]

1. d4 {[%clk 1:30:59]} 1... Nf6 {[%clk 1:30:54]} 2. Nf3 {[%clk 1:31:25]} 2... e6
{[%clk 1:31:14]} 3. e3 {[%clk 1:31:53]} 3... d5 {[%clk 1:31:33]} 4. Bd3 {[%clk
1:32:19]} 4... c5 {[%clk 1:31:48]} 5. b3 {[%clk 1:32:45]} 5... Nc6 {[%clk
1:32:06]} 6. a3 {[%clk 1:33:10]} 6... a6 {[%clk 1:32:13]} 7. Bb2 {[%clk
1:32:39]} 7... b6 {[%clk 1:32:17]} 8. O-O {[%clk 1:33:02]} 8... Bb7 {[%clk
1:32:41]} 9. Nbd2 {[%clk 1:33:13]} 9... Bd6 {[%clk 1:32:38]} 10. Ne5 {[%clk
1:33:34]} 10... O-O {[%clk 1:32:39]} 11. f4 {[%clk 1:34:01]} 11... b5 {[%clk
1:32:31]} 12. c4 {[%clk 1:30:29]} 12... bxc4 {[%clk 1:32:39]} 13. bxc4 {[%clk
1:30:44]} 13... cxd4 {[%clk 1:32:47]} 14. Nxc6 {[%clk 1:26:40]} 14... Bxc6
{[%clk 1:32:09]} 15. Bxd4 {[%clk 1:26:26]} 15... dxc4 {[%clk 1:28:57]} 16. Nxc4
{[%clk 1:25:20]} 16... Bc7 {[%clk 1:27:35]} 17. Qc2 {[%clk 1:18:51]} 17... Rc8
{[%clk 1:15:14]} 18. Rad1 {[%clk 1:12:17]} 18... Qe7 {[%clk 1:03:35]} 19. Ne5
{[%clk 0:47:15]} 19... Bxe5 {[%clk 0:51:07]} 20. fxe5 {[%clk 0:46:43]} 20... Nd7
{[%clk 0:50:54]} 21. Bxa6 {[%clk 0:35:34]} 21... Bb7 {[%clk 0:50:19]} 22. Qe2
{[%clk 0:34:40]} 22... Bxa6 {[%clk 0:50:44]} 23. Qxa6 {[%clk 0:35:09]} 23...
Rfd8 {[%clk 0:37:03]} 24. Rc1 {[%clk 0:33:32]} 24... Ra8 {[%clk 0:32:47]} 25.
Qb7 {[%clk 0:31:41]} 25... Qg5 {[%clk 0:27:11]} 26. Qe4 {[%clk 0:18:28]} 26...
Rxa3 {[%clk 0:24:33]} 27. Rc7 {[%clk 0:17:23]} 27... Qe7 {[%clk 0:24:12]} 28.
Qc6 {[%clk 0:11:14]} 28... Raa8 {[%clk 0:24:06]} 29. Rb1 {[%clk 0:08:53]} 29...
Rab8 {[%clk 0:22:45]} 30. Rxb8 {[%clk 0:05:35]} 30... Nxb8 {[%clk 0:22:21]} 31.
Qb7 {[%clk 0:03:33]} 31... Qe8 {[%clk 0:22:14]} 32. h3 {[%clk 0:02:46]} 32...
Nd7 {[%clk 0:22:04]} 33. Qc6 {[%clk 0:02:36]} 33... h6 {[%clk 0:22:07]} 34. Kh2
{[%clk 0:01:55]} 34... Nf8 {[%clk 0:22:09]} 35. Qb7 {[%clk 0:01:37]} 35... Ng6
{[%clk 0:21:45]} 36. Qf3 {[%clk 0:01:24]} 36... Rd7 {[%clk 0:22:05]} 37. Qc6
{[%clk 0:01:23]} 37... Rd8 {[%clk 0:21:54]} 38. Qb7 {[%clk 0:01:39]} 38... Rb8
{[%clk 0:22:11]} 39. Qf3 {[%clk 0:01:34]} 39... Nh4 {[%clk 0:21:34]} 40. Qe4
{[%clk 0:01:32]} 40... Nf5 {[%clk 0:21:43]} 41. Ba7 {[%clk 0:01:21]} 41... Rb2
{[%clk 0:21:01]} 42. Qc4 {[%clk 0:01:18]} 42... Qb5 {[%clk 0:19:33]} 43. Qxb5
{[%clk 0:01:19]} 43... Rxb5 {[%clk 0:19:55]} 44. Bd4 {[%clk 0:01:04]} 44... Rb3
{[%clk 0:19:59]} 45. e4 {[%clk 0:00:52]} 45... Nxd4 {[%clk 0:20:21]} 0-1

[Variant "Standard"]
[Site "Europe Echecs"]

[Event "Championnat du monde jeunes U12"]
[Date "2024.11.26"]
[White "Yang, Maxwell"]
[Black "Miransh Vyas"]
[WhiteElo "1889"]
[BlackElo "1705"]
[Round "11.41"]
[Result "0-1"]
[TimeControl "5400+30"]

1. d4 {[%clk 1:30:54]} 1... d5 {[%clk 1:29:29]} 2. c4 {[%clk 1:31:19]} 2... e6
{[%clk 1:29:55]} 3. Nc3 {[%clk 1:31:45]} 3... Nf6 {[%clk 1:30:20]} 4. cxd5
{[%clk 1:32:10]} 4... exd5 {[%clk 1:30:44]} 5. Bg5 {[%clk 1:32:35]} 5... c6
{[%clk 1:31:07]} 6. e3 {[%clk 1:33:02]} 6... Bd6 {[%clk 1:31:14]} 7. Bd3 {[%clk
1:33:26]} 7... O-O {[%clk 1:31:30]} 8. Qc2 {[%clk 1:33:49]} 8... h6 {[%clk
1:31:53]} 9. Bh4 {[%clk 1:34:15]} 9... Re8 {[%clk 1:30:57]} 10. Nf3 {[%clk
1:34:33]} 10... Be6 {[%clk 1:27:35]} 11. Ne5 {[%clk 1:15:07]} 11... c5 {[%clk
1:18:35]} 12. O-O {[%clk 1:09:28]} 12... Nc6 {[%clk 1:11:58]} 13. Nxc6 {[%clk
1:07:26]} 13... bxc6 {[%clk 1:12:19]} 14. Bxf6 {[%clk 0:54:20]} 14... Qxf6
{[%clk 1:12:16]} 15. dxc5 {[%clk 0:54:22]} 15... Bxc5 {[%clk 1:10:56]} 16. Ne2
{[%clk 0:54:32]} 16... Bd6 {[%clk 1:08:40]} 17. Qxc6 {[%clk 0:52:54]} 17... Qe5
{[%clk 0:54:41]} 18. Ng3 {[%clk 0:52:45]} 18... Rec8 {[%clk 0:54:21]} 19. Qa6
{[%clk 0:52:51]} 19... h5 {[%clk 0:53:08]} 20. Rae1 {[%clk 0:50:41]} 20... Bd7
{[%clk 0:32:16]} 21. f4 {[%clk 0:48:59]} 21... Qe7 {[%clk 0:31:35]} 22. Qb7
{[%clk 0:41:24]} 22... h4 {[%clk 0:23:50]} 23. Nh5 {[%clk 0:29:37]} 23... Rab8
{[%clk 0:13:41]} 24. Qxd5 {[%clk 0:06:23]} 24... Rc5 {[%clk 0:13:37]} 25. Qf3
{[%clk 0:06:34]} 25... g6 {[%clk 0:12:56]} 26. f5 {[%clk 0:05:17]} 26... gxh5
{[%clk 0:12:26]} 27. Qxh5 {[%clk 0:05:28]} 27... Qf6 {[%clk 0:12:06]} 28. b3
{[%clk 0:05:13]} 28... Kf8 {[%clk 0:06:23]} 29. Bc4 {[%clk 0:04:18]} 29... Bb5
{[%clk 0:06:08]} 30. Qg4 {[%clk 0:03:50]} 30... Bxc4 {[%clk 0:06:16]} 31. bxc4
{[%clk 0:04:14]} 31... Rbc8 {[%clk 0:05:45]} 32. Rc1 {[%clk 0:04:31]} 32... Ke7
{[%clk 0:05:25]} 33. Qe4+ {[%clk 0:04:37]} 33... Re5 {[%clk 0:05:29]} 34. Qf3
{[%clk 0:03:47]} 34... Rc7 {[%clk 0:05:04]} 35. Kh1 {[%clk 0:04:04]} 35... Bc5
{[%clk 0:04:57]} 36. e4 {[%clk 0:04:23]} 36... Rd7 {[%clk 0:04:28]} 37. Rfd1
{[%clk 0:04:43]} 37... Rd4 {[%clk 0:02:55]} 38. Rxd4 {[%clk 0:04:49]} 38... Bxd4
{[%clk 0:03:18]} 39. Rd1 {[%clk 0:04:01]} 39... Bb6 {[%clk 0:01:53]} 40. Qa3+
{[%clk 0:03:42]} 40... Rc5 {[%clk 0:01:24]} 41. Qd3 {[%clk 0:03:04]} 41... Qc6
{[%clk 0:01:28]} 42. Rc1 {[%clk 0:02:19]} 42... Qd6 {[%clk 0:01:16]} 43. Qe3
{[%clk 0:02:40]} 43... Kd7 {[%clk 0:00:32]} 44. Qe2 {[%clk 0:02:49]} 44... Kc7
{[%clk 0:00:53]} 45. Rd1 {[%clk 0:02:58]} 45... Qe7 {[%clk 0:01:04]} 46. Qd3
{[%clk 0:02:12]} 46... f6 {[%clk 0:01:04]} 47. g3 {[%clk 0:01:51]} 47... hxg3
{[%clk 0:01:23]} 48. hxg3 {[%clk 0:01:52]} 48... Re5 {[%clk 0:01:38]} 49. Re1
{[%clk 0:01:58]} 49... Qd6 {[%clk 0:01:35]} 50. Qc3 {[%clk 0:01:49]} 50... Re8
{[%clk 0:01:14]} 51. Kg2 {[%clk 0:02:02]} 51... Qc5 {[%clk 0:01:17]} 52. Qb2
{[%clk 0:01:40]} 52... Re5 {[%clk 0:01:08]} 53. Qc2 {[%clk 0:01:53]} 53... Re8
{[%clk 0:01:22]} 54. Rd1 {[%clk 0:01:04]} 54... Qe5 {[%clk 0:01:35]} 55. Kf3
{[%clk 0:01:11]} 55... Rg8 {[%clk 0:01:46]} 56. Qh2 {[%clk 0:01:00]} 56... Qc3+
{[%clk 0:01:54]} 57. Ke2 {[%clk 0:01:10]} 57... Qc2+ {[%clk 0:02:13]} 58. Rd2
{[%clk 0:01:28]} 58... Qxe4+ {[%clk 0:01:54]} 59. Kf1 {[%clk 0:01:49]} 59...
Qxf5+ {[%clk 0:02:13]} 60. Kg2 {[%clk 0:01:59]} 60... Qe4+ {[%clk 0:02:13]} 61.
Kf1 {[%clk 0:02:02]} 61... Qf3+ {[%clk 0:02:29]} 62. Ke1 {[%clk 0:02:23]} 62...
Re8+ {[%clk 0:02:49]} 63. Re2 {[%clk 0:02:49]} 63... Ba5+ {[%clk 0:03:06]} 64.
Kd1 {[%clk 0:03:14]} 64... Qf1+ {[%clk 0:02:54]} 0-1

[Variant "Standard"]
[Site "Europe Echecs"]

[Event "Championnat du monde jeunes U12"]
[Date "2024.11.26"]
[White "Fadeev, Justin Michael"]
[Black "Kraucenka, Justas"]
[WhiteElo "1878"]
[BlackElo "1650"]
[Round "11.42"]
[Result "1-0"]
[TimeControl "5400+30"]

1. e4 {[%clk 1:30:59]} 1... e6 {[%clk 1:30:57]} 2. d4 {[%clk 1:31:24]} 2... d5
{[%clk 1:31:27]} 3. Nd2 {[%clk 1:31:48]} 3... b6 {[%clk 1:31:46]} 4. Ngf3 {[%clk
1:29:44]} 4... Nf6 {[%clk 1:32:04]} 5. e5 {[%clk 1:29:51]} 5... Nfd7 {[%clk
1:32:28]} 6. Bd3 c5 {[%clk 1:32:38]} 7. c3 {[%clk 1:30:02]} 7... Ba6 {[%clk
1:32:37]} 8. Bxa6 {[%clk 1:28:48]} 8... Nxa6 {[%clk 1:33:03]} 9. O-O {[%clk
1:29:08]} 9... Be7 {[%clk 1:33:24]} 10. Re1 {[%clk 1:27:46]} 10... Nab8 {[%clk
1:32:20]} 11. Nf1 {[%clk 1:26:27]} 11... Nc6 {[%clk 1:30:28]} 12. h3 {[%clk
1:22:01]} 12... O-O {[%clk 1:30:18]} 13. N3h2 {[%clk 1:21:28]} 13... cxd4 {[%clk
1:27:23]} 14. cxd4 {[%clk 1:21:50]} 14... f6 {[%clk 1:18:38]} 15. exf6 {[%clk
1:18:06]} 15... Rxf6 {[%clk 1:18:21]} 16. Nf3 {[%clk 1:08:27]} 16... h6 {[%clk
1:12:53]} 17. Ng3 {[%clk 1:06:28]} 17... Rg6 {[%clk 1:07:05]} 18. Qc2 {[%clk
1:06:07]} 18... Rxg3 {[%clk 0:59:36]} 19. fxg3 {[%clk 1:02:46]} 19... Rc8 {[%clk
0:58:54]} 20. Qg6 {[%clk 0:55:18]} 20... Bf6 {[%clk 0:54:03]} 21. Qg4 {[%clk
0:51:09]} 21... e5 {[%clk 0:48:16]} 22. dxe5 {[%clk 0:46:04]} 22... Ndxe5 {[%clk
0:47:35]} 23. Nxe5 {[%clk 0:46:11]} 23... Nxe5 {[%clk 0:47:35]} 24. Rxe5 {[%clk
0:46:11]} 24... Bxe5 {[%clk 0:47:02]} 25. Qe6+ {[%clk 0:45:43]} 25... Kh7 {[%clk
0:47:02]} 26. Qxe5 {[%clk 0:45:43]} 26... d4 {[%clk 0:47:02]} 27. Bf4 {[%clk
0:45:43]} 27... Rc2 {[%clk 0:47:02]} 28. Qe4+ {[%clk 0:45:43]} 28... Kh8 {[%clk
0:47:02]} 29. Qxc2 {[%clk 0:45:43]} 29... d3 {[%clk 0:47:02]} 30. Qd2 {[%clk
0:45:43]} 30... Qd4+ {[%clk 0:47:02]} 31. Kh2 {[%clk 0:45:43]} 31... g5 {[%clk
0:47:02]} 32. Qc3 {[%clk 0:45:43]} 32... Qxc3 {[%clk 0:47:02]} 33. bxc3 {[%clk
0:45:43]} 33... gxf4 {[%clk 0:47:02]} 34. gxf4 {[%clk 0:46:58]} 34... d2 {[%clk
0:45:01]} 35. Rd1 {[%clk 0:47:25]} 35... Kg7 {[%clk 0:45:25]} 36. Rxd2 {[%clk
0:47:52]} 36... Kf6 {[%clk 0:45:44]} 37. g4 {[%clk 0:48:16]} 37... Ke6 {[%clk
0:46:08]} 38. f5+ {[%clk 0:48:42]} 38... Ke7 {[%clk 0:46:32]} 39. Rf2 {[%clk
0:49:04]} 39... a5 {[%clk 0:46:53]} 40. f6+ {[%clk 0:49:31]} 40... Kf7 {[%clk
0:47:19]} 41. h4 {[%clk 0:49:59]} 41... a4 {[%clk 0:47:39]} 42. g5 {[%clk
0:50:24]} 42... a3 {[%clk 0:48:03]} 43. g6+ {[%clk 0:50:44]} 43... Kf8 {[%clk
0:48:29]} 44. g7+ {[%clk 0:51:07]} 44... Kf7 {[%clk 0:48:55]} 45. Rg2 {[%clk
0:51:26]} 45... Kg8 {[%clk 0:49:19]} 46. f7+ {[%clk 0:51:52]} 46... Kxf7 {[%clk
0:49:35]} 47. g8=Q+ {[%clk 0:52:17]} 47... Kf6 {[%clk 0:49:57]} 48. Re2 {[%clk
0:52:33]} 48... Kf5 {[%clk 0:50:16]} 49. Qf8+ {[%clk 0:52:51]} 49... Kg6 {[%clk
0:50:38]} 50. Rg2+ {[%clk 0:51:53]} 50... Kh5 {[%clk 0:51:03]} 51. Qf5+ {[%clk
0:52:22]} 51... Kxh4 {[%clk 0:51:24]} 52. Qg4# {[%clk 0:52:21]} 1-0

[Variant "Standard"]
[Site "Europe Echecs"]

[Event "Championnat du monde jeunes U12"]
[Date "2024.11.26"]
[White "Zhan, Jayden Zihan"]
[Black "Ivarlac, Vladislav"]
[WhiteElo "1670"]
[BlackElo "1867"]
[Round "11.43"]
[Result "0-1"]
[TimeControl "5400+30"]

1. e4 {[%clk 1:30:57]} 1... c6 {[%clk 1:30:56]} 2. d4 {[%clk 1:31:22]} 2... d5
{[%clk 1:31:24]} 3. e5 {[%clk 1:31:45]} 3... Bf5 {[%clk 1:31:43]} 4. Nf3 {[%clk
1:32:04]} 4... e6 {[%clk 1:32:07]} 5. Be2 {[%clk 1:32:28]} 5... Nd7 {[%clk
1:32:31]} 6. O-O {[%clk 1:32:30]} 6... a5 {[%clk 1:32:53]} 7. a4 {[%clk
1:32:08]} 7... f6 {[%clk 1:32:55]} 8. exf6 {[%clk 1:22:59]} 8... Ngxf6 {[%clk
1:32:26]} 9. Bf4 {[%clk 1:21:53]} 9... Be7 {[%clk 1:29:49]} 10. Bd3 {[%clk
1:18:48]} 10... Ne4 {[%clk 1:27:18]} 11. Ne5 {[%clk 1:07:50]} 11... Nxe5 {[%clk
1:26:53]} 12. Bxe5 {[%clk 1:05:40]} 12... Qb6 {[%clk 1:23:51]} 13. Kh1 {[%clk
0:47:20]} 13... O-O {[%clk 1:23:17]} 14. Qe2 {[%clk 0:43:25]} 14... Qxb2 {[%clk
1:20:55]} 15. Nd2 {[%clk 0:40:24]} 15... Nxf2+ {[%clk 1:18:29]} 16. Qxf2 {[%clk
0:38:02]} 16... Bxd3 {[%clk 1:18:50]} 17. Qg3 {[%clk 0:37:38]} 17... Bg6 {[%clk
1:18:35]} 18. Qg4 {[%clk 0:31:55]} 18... Rf5 {[%clk 1:18:33]} 19. Rfb1 {[%clk
0:27:08]} 19... Qxc2 {[%clk 1:17:35]} 20. Rxb7 {[%clk 0:25:37]} 20... Bf6 {[%clk
1:16:30]} 21. Nf3 {[%clk 0:20:56]} 21... Qe4 {[%clk 1:15:57]} 22. Qg3 {[%clk
0:18:36]} 22... Bxe5 {[%clk 1:16:03]} 23. dxe5 {[%clk 0:15:51]} 23... Qf4 {[%clk
1:15:04]} 24. Qxf4 {[%clk 0:15:13]} 24... Rxf4 {[%clk 1:15:27]} 25. Rc7 {[%clk
0:15:05]} 25... Rc4 {[%clk 1:13:32]} 26. Ng5 {[%clk 0:13:42]} 26... Re8 {[%clk
1:13:54]} 27. Ra7 {[%clk 0:13:39]} 27... Rc5 {[%clk 1:13:55]} 28. h3 {[%clk
0:13:13]} 28... d4 {[%clk 1:13:44]} 29. Nf3 {[%clk 0:13:21]} 29... Rd5 {[%clk
1:14:05]} 30. Rc7 {[%clk 0:12:35]} 30... Be4 {[%clk 1:13:55]} 31. Rxc6 {[%clk
0:11:01]} 31... Bxf3 {[%clk 1:14:20]} 32. gxf3 {[%clk 0:11:25]} 32... Rxe5
{[%clk 1:14:48]} 33. Rd6 {[%clk 0:09:40]} 33... Re3 {[%clk 1:14:55]} 34. Rxd4
{[%clk 0:09:06]} 34... Rxf3 {[%clk 1:15:20]} 35. Kg2 {[%clk 0:09:21]} 35... Rc3
{[%clk 1:15:32]} 36. Re1 {[%clk 0:09:05]} 36... Rc2+ {[%clk 1:14:56]} 37. Kf3
{[%clk 0:09:05]} 37... Rf8+ {[%clk 1:15:15]} 38. Kg3 {[%clk 0:08:48]} 38... Rc6
{[%clk 1:15:03]} 39. Rd7 {[%clk 0:08:23]} 39... h6 {[%clk 1:11:57]} 40. Ra7
{[%clk 0:08:28]} 40... Rf5 {[%clk 1:12:00]} 41. Rd1 {[%clk 0:07:19]} 41... Rg5+
{[%clk 1:12:00]} 42. Kh2 {[%clk 0:05:54]} 42... Rc4 {[%clk 1:12:08]} 43. Re1
{[%clk 0:05:06]} 43... Rxa4 {[%clk 1:12:27]} 44. Rxe6 {[%clk 0:05:13]} 44...
Ra2+ {[%clk 1:12:51]} 45. Kh1 {[%clk 0:05:21]} 45... Rg3 {[%clk 1:13:10]} 46.
Re8+ {[%clk 0:04:08]} 46... Kh7 {[%clk 1:13:35]} 47. Re5 {[%clk 0:02:55]} 47...
Rxh3+ {[%clk 1:13:57]} 48. Kg1 {[%clk 0:03:10]} 48... Rg3+ {[%clk 1:14:25]} 49.
Kh1 {[%clk 0:02:34]} 49... Rd3 {[%clk 1:13:43]} 50. Re1 {[%clk 0:02:46]} 50...
a4 {[%clk 1:14:08]} 51. Ra6 {[%clk 0:02:17]} 51... a3 {[%clk 1:14:30]} 52. Ra5
{[%clk 0:02:12]} 52... Rc2 {[%clk 1:14:38]} 53. Ra1 {[%clk 0:02:06]} 53... Rcc3
{[%clk 1:14:38]} 54. Kg2 {[%clk 0:02:05]} 54... g5 {[%clk 1:14:56]} 55. Rh1
{[%clk 0:01:42]} 55... Rc2+ {[%clk 1:15:22]} 0-1

[Variant "Standard"]
[Site "Europe Echecs"]

[Event "Championnat du monde jeunes U12"]
[Date "2024.11.26"]
[White "Vorobyov, Radmir"]
[Black "Leht, Karl Samuel"]
[WhiteElo "2017"]
[BlackElo "1701"]
[Round "11.44"]
[Result "1-0"]
[TimeControl "5400+30"]

1. d4 {[%clk 1:30:58]} 1... f5 {[%clk 1:30:56]} 2. Nf3 {[%clk 1:31:22]} 2... Nf6
{[%clk 1:31:21]} 3. g3 {[%clk 1:31:46]} 3... g6 {[%clk 1:31:48]} 4. Bg2 {[%clk
1:32:11]} 4... Bg7 {[%clk 1:32:12]} 5. O-O {[%clk 1:32:34]} 5... d6 {[%clk
1:32:40]} 6. c4 {[%clk 1:32:57]} 6... O-O {[%clk 1:33:05]} 7. Nc3 {[%clk
1:33:06]} 7... c6 {[%clk 1:33:16]} 8. Bd2 {[%clk 1:25:25]} 8... Qe8 {[%clk
1:33:10]} 9. Qc1 {[%clk 1:24:18]} 9... e5 {[%clk 1:32:46]} 10. dxe5 {[%clk
1:23:58]} 10... dxe5 {[%clk 1:33:02]} 11. e4 {[%clk 1:22:00]} 11... Nxe4 {[%clk
1:31:33]} 12. Nxe4 {[%clk 1:22:21]} 12... fxe4 {[%clk 1:32:01]} 13. Ng5 {[%clk
1:22:42]} 13... Bf5 {[%clk 1:30:39]} 14. Nxe4 {[%clk 1:17:17]} 14... Bxe4 {[%clk
1:30:54]} 15. Bxe4 {[%clk 1:17:42]} 15... Rf7 {[%clk 1:31:09]} 16. b4 {[%clk
1:10:11]} 16... Nd7 {[%clk 1:30:23]} 17. Bc3 {[%clk 1:09:07]} 17... Nf6 {[%clk
1:26:40]} 18. Bg2 {[%clk 1:08:22]} 18... Rd8 {[%clk 1:26:05]} 19. Qb2 {[%clk
1:05:34]} 19... Qe6 {[%clk 1:21:19]} 20. Rad1 {[%clk 0:54:10]} 20... Rdf8 {[%clk
1:13:22]} 21. Bxe5 {[%clk 0:51:25]} 21... Qxc4 {[%clk 1:08:53]} 22. f4 {[%clk
0:42:46]} 22... Ng4 {[%clk 1:03:13]} 23. Bxg7 {[%clk 0:42:30]} 23... Rxg7 {[%clk
1:03:25]} 24. Rd4 {[%clk 0:38:57]} 24... Qb5 {[%clk 1:01:38]} 25. h3 {[%clk
0:36:52]} 25... Nf6 {[%clk 1:00:16]} 26. Rfd1 {[%clk 0:35:09]} 26... Re7 {[%clk
0:58:01]} 27. Rd6 {[%clk 0:25:54]} 27... Qf5 {[%clk 0:48:05]} 28. Qd4 {[%clk
0:19:33]} 28... Ne4 {[%clk 0:42:31]} 29. Re1 {[%clk 0:13:48]} 29... Nxd6 {[%clk
0:35:27]} 30. Rxe7 {[%clk 0:14:09]} 30... Qb1+ {[%clk 0:31:51]} 31. Kh2 {[%clk
0:14:02]} 31... Nf5 {[%clk 0:31:56]} 32. Qc4+ {[%clk 0:12:17]} 32... Kh8 {[%clk
0:30:17]} 33. Qc3+ {[%clk 0:05:41]} 33... Kg8 {[%clk 0:30:22]} 34. Rxb7 {[%clk
0:05:54]} 34... Qd1 {[%clk 0:26:00]} 35. g4 {[%clk 0:04:04]} 35... Nd4 {[%clk
0:24:44]} 36. Qc4+ {[%clk 0:01:00]} 36... Kh8 {[%clk 0:24:45]} 37. Qc5 {[%clk
0:00:42]} 37... Re8 {[%clk 0:23:24]} 38. Re7 {[%clk 0:00:35]} 38... Rxe7 {[%clk
0:23:24]} 39. Qxe7 {[%clk 0:01:00]} 39... Kg8 {[%clk 0:23:34]} 40. Qe8+ {[%clk
0:00:50]} 40... Kg7 {[%clk 0:23:54]} 41. Qe5+ {[%clk 0:01:10]} 41... Kg8 {[%clk
0:24:01]} 42. Qb8+ {[%clk 0:00:40]} 42... Kg7 {[%clk 0:23:47]} 43. Qxa7+ {[%clk
0:01:04]} 43... Kf6 {[%clk 0:21:16]} 44. Qc5 {[%clk 0:00:34]} 44... Qd2 {[%clk
0:20:20]} 45. Qf8+ {[%clk 0:00:38]} 45... Ke6 {[%clk 0:20:42]} 46. Qe8+ {[%clk
0:00:37]} 46... Kd6 {[%clk 0:20:15]} 47. Qd8+ {[%clk 0:00:33]} 47... Ke6 {[%clk
0:20:35]} 48. Qc8+ {[%clk 0:00:32]} 48... Kd6 {[%clk 0:20:32]} 49. Qf8+ {[%clk
0:00:34]} 49... Ke6 {[%clk 0:20:34]} 50. Qe8+ {[%clk 0:00:52]} 50... Kd6 {[%clk
0:20:51]} 51. Qe4 {[%clk 0:01:07]} 51... Qf2 {[%clk 0:20:15]} 52. f5 {[%clk
0:00:33]} 52... gxf5 {[%clk 0:18:29]} 53. gxf5 {[%clk 0:00:56]} 53... Kd7 {[%clk
0:16:37]} 54. f6 {[%clk 0:00:36]} 54... Ne2 {[%clk 0:15:53]} 55. Qe7+ {[%clk
0:00:41]} 55... Kc8 {[%clk 0:16:21]} 56. Qe8+ {[%clk 0:00:55]} 56... Kc7 {[%clk
0:16:46]} 57. Qxc6+ {[%clk 0:01:19]} 57... Kd8 {[%clk 0:16:43]} 58. Qd5+ {[%clk
0:01:14]} 58... Kc8 {[%clk 0:16:07]} 59. Qc5+ {[%clk 0:01:33]} 1-0

[Variant "Standard"]
[Site "Europe Echecs"]